fUST/lending_fUST_20241008
["ID","MTS","AMOUNT","RATE_DAILY","PERIOD"]
[340023429,1728334293171,-500.0,0.00039726,120]
[340023430,1728334293181,-1008.72,0.00039726,120]
[340023431,1728334293191,-500.0,0.00039726,120]
[340023432,1728334293201,-455.8472756,0.00039726,120]
[340023433,1728334293212,-500.0,0.00039726,120]
[340023434,1728334293222,-576.24,0.00039726,120]
[340023435,1728334293231,-500.95435917,0.00039726,120]
[340023436,1728334293241,-787.72,0.00039726,120]
[340023437,1728334293251,-500.70184803,0.00039726,7]
[340023438,1728334293261,-500.0,0.00039726,120]
[340023439,1728334293271,-687.3,0.00039726,120]
[340023440,1728334293406,-500.0,0.00039726,120]
[340023441,1728334293416,-917.09,0.00039726,120]
[340023442,1728334293426,-500.0,0.00039726,120]
[340023443,1728334293437,-500.0,0.00039726,120]
[340023444,1728334293447,-500.0,0.00039726,120]
[340023445,1728334293458,-500.0,0.00039726,120]
[340023446,1728334293467,-500.0,0.00039726,120]
[340023447,1728334293478,-1008.32,0.00039726,120]
[340023448,1728334293488,-500.0,0.00039726,120]
[340023449,1728334293498,-1051.57,0.00039726,120]
[340023450,1728334293509,-500.0,0.00039726,120]
[340023451,1728334293519,-500.0,0.00039726,120]
[340023452,1728334293530,-677.92,0.00039726,120]
[340023453,1728334293540,-500.0,0.00039726,2]
[340023454,1728334293551,-500.0,0.00039726,120]
[340023455,1728334293561,-529.97,0.00039726,120]
[340023456,1728334293573,-500.0,0.00039726,120]
[340023457,1728334293584,-498.89279902,0.00039726,10]
[340023458,1728334293594,-1141.57,0.00039726,120]
[340023459,1728334293603,-954.06,0.00039726,120]
[340023460,1728334293613,-500.0,0.00039726,120]
[340023461,1728334293623,-865.56,0.00039726,120]
[340023462,1728334293632,-818.05,0.00039726,120]
[340023463,1728334293642,-500.0,0.00039726,120]
[340023464,1728334293652,-500.0,0.00039726,120]
[340023465,1728334293661,-647.55,0.00039726,120]
[340023466,1728334293672,-500.0,0.00039726,120]
[340023467,1728334293682,-504.35,0.00039726,120]
[340023468,1728334293692,-500.0,0.00039726,120]
[340023469,1728334293702,-851.04,0.00039726,120]
[340023470,1728334293713,-500.0,0.00039726,120]
[340023471,1728334293723,-523.84,0.00039726,120]
[340023472,1728334293734,-757.96,0.00039726,30]
[340023473,1728334293743,-500.0,0.00039726,120]
[340023474,1728334293753,-563.6,0.00039726,120]
[340023475,1728334293763,-555.29,0.00039726,120]
[340023476,1728334293773,-500.0,0.00039726,120]
[340023477,1728334293783,-500.0,0.00039726,120]
[340023478,1728334293793,-500.0,0.00039726,120]
[340023479,1728334293803,-500.0,0.00039726,120]
[340023480,1728334293813,-500.0,0.00039726,120]
[340023481,1728334293822,-500.0,0.00039726,120]
[340023482,1728334293832,-500.0,0.00039726,120]
[340023483,1728334293842,-500.0,0.00039726,120]
[340023484,1728334293851,-743.56,0.00039726,120]
[340023485,1728334293861,-754.92,0.00039726,120]
[340023486,1728334293871,-1365.58,0.00039726,120]
[340023487,1728334293881,-500.0,0.00039726,120]
[340023488,1728334293892,-500.0,0.00039726,120]
[340023489,1728334293902,-623.42,0.00039726,120]
[340023490,1728334293912,-500.0,0.00039726,120]
[340023491,1728334293921,-861.29,0.00039726,120]
[340023492,1728334293932,-500.0,0.00039726,2]
[340023493,1728334293943,-500.0,0.00039726,120]
[340023494,1728334293954,-573.92,0.00039726,120]
[340023495,1728334293965,-555.73,0.00039726,120]
[340023496,1728334293975,-500.0,0.00039726,120]
[340023497,1728334293985,-917.57,0.00039726,120]
[340023498,1728334293995,-500.0,0.00039726,120]
[340023499,1728334294004,-500.0,0.00039726,120]
[340023500,1728334294015,-500.0,0.00039726,120]
[340023501,1728334294025,-544.85,0.00039726,120]
[340023502,1728334294035,-500.0,0.00039726,120]
[340023503,1728334294045,-571.4,0.00039726,60]
[340023504,1728334294055,-500.0,0.00039726,120]
[340023505,1728334294065,-500.0,0.00039726,120]
[340023506,1728334294075,-719.55,0.00039726,120]
[340023507,1728334294085,-500.0,0.00039726,120]
[340023508,1728334294095,-500.0,0.00039726,120]
[340023509,1728334294105,-640.61,0.00039726,120]
[340023510,1728334294117,-500.0,0.00039726,120]
[340023511,1728334294127,-500.0,0.00039726,120]
[340023512,1728334294137,-918.63,0.00039726,120]
[340023513,1728334294147,-812.73,0.00039726,120]
[340023514,1728334294157,-500.0,0.00039726,120]
[340023515,1728334294167,-500.0,0.00039726,120]
[340023516,1728334294177,-500.0,0.00039726,120]
[340023517,1728334294187,-500.0,0.00039726,120]
[340023518,1728334294198,-502.3,0.00039726,120]
[340023519,1728334294212,-500.0,0.00039726,120]
[340023520,1728334294227,-708.61,0.00039726,120]
[340023521,1728334294236,-500.0,0.00039726,120]
[340023522,1728334294245,-500.0,0.00039726,120]
[340023523,1728334294255,-537.44,0.00039726,120]
[340023524,1728334294264,-500.0,0.00039726,120]
[340023525,1728334294273,-500.0,0.00039726,120]
[340023526,1728334294283,-182.040068,0.00039726,120]
[340023527,1728334294292,-610.21,0.00039726,120]
[340023528,1728334294302,-554.6,0.00039726,120]
[340023529,1728334294311,-500.0,0.00039726,120]
[340023530,1728334294320,-500.0,0.00039726,120]
[340023531,1728334294329,-500.0,0.00039726,120]
[340023532,1728334294339,-500.0,0.00039726,120]
[340023533,1728334294348,-500.0,0.00039726,120]
[340023534,1728334294358,-500.0,0.00039726,120]
[340023535,1728334294367,-500.0,0.00039726,120]
[340023536,1728334294376,-500.0,0.00039726,120]
[340023537,1728334294386,-500.0,0.00039726,120]
[340023538,1728334294396,-500.0,0.00039726,120]
[340023539,1728334294405,-500.0,0.00039726,120]
[340023540,1728334294415,-760.72,0.00039726,120]
[340023541,1728334294424,-500.0,0.00039726,120]
[340023542,1728334294434,-500.0,0.00039726,120]
[340023543,1728334294443,-505.93,0.00039726,120]
[340023544,1728334294452,-500.0,0.00039726,120]
[340023545,1728334294462,-579.67,0.00039726,120]
[340023546,1728334294472,-500.0,0.00039726,120]
[340023547,1728334294481,-500.0,0.00039726,120]
[340023548,1728334294491,-500.0,0.00039726,120]
[340023549,1728334294500,-500.0,0.00039726,120]
[340023550,1728334294510,-909.57,0.00039726,120]
[340023551,1728334294519,-699.58,0.00039726,120]
[340023552,1728334294528,-778.22,0.00039726,120]
[340023553,1728334294538,-212.15374213,0.00039726,120]
[340023554,1728334294547,-1176.62,0.00039726,120]
[340023555,1728334294557,-500.0,0.00039726,120]
[340023556,1728334294567,-538.25,0.00039726,120]
[340023557,1728334294577,-500.0,0.00039726,120]
[340023558,1728334294586,-500.0,0.00039726,120]
[340023559,1728334294596,-628.45,0.00039726,120]
[340023560,1728334294605,-523.99835036,0.00039726,120]
[340023561,1728334294614,-500.0,0.00039726,120]
[340023562,1728334294624,-500.0,0.00039726,30]
[340023563,1728334294633,-500.0,0.00039726,120]
[340023564,1728334294642,-799.02,0.00039726,120]
[340023565,1728334294651,-225.37842272,0.00039726,120]
[340023566,1728334294661,-1344.11,0.00039726,21]
[340023567,1728334294670,-500.0,0.00039726,120]
[340023568,1728334294680,-500.0,0.00039726,120]
[340023569,1728334294689,-500.0,0.00039726,120]
[340023570,1728334294699,-1176.49,0.00039726,120]
[340023571,1728334294712,-538.89,0.00039726,120]
[340023572,1728334294721,-500.0,0.00039726,120]
[340023573,1728334294730,-500.0,0.00039726,120]
[340023574,1728334294740,-500.0,0.00039726,120]
[340023575,1728334294749,-500.0,0.00039726,120]
[340023576,1728334294758,-2556.51,0.00039726,120]
[340023577,1728334294768,-590.26430788,0.00039726,120]
[340023578,1728334294777,-500.0,0.00039726,120]
[340023579,1728334294787,-500.0,0.00039726,120]
[340023580,1728334294796,-500.0,0.00039726,120]
[340023581,1728334294805,-500.0,0.00039726,120]
[340023582,1728334294815,-686.35,0.00039726,120]
[340023583,1728334294824,-500.0,0.00039726,120]
[340023584,1728334294834,-1127.5,0.00039726,120]
[340023585,1728334294843,-618.33,0.00039726,120]
[340023586,1728334294853,-336.73,0.00039726,7]
[340023587,1728334294863,-557.71,0.00039726,120]
[340023588,1728334294872,-554.61,0.00039726,120]
[340023589,1728334294882,-724.85,0.00039726,120]
[340023590,1728334294891,-500.0,0.00039726,120]
[340023591,1728334294901,-501.1977154,0.00039726,120]
[340023592,1728334294910,-500.0,0.00039726,120]
[340023593,1728334294919,-500.0,0.00039726,120]
[340023594,1728334294928,-500.0,0.00039726,120]
[340023595,1728334294938,-500.0,0.00039726,120]
[340023596,1728334294947,-500.0,0.00039726,120]
[340023597,1728334294956,-500.0,0.00039726,120]
[340023598,1728334294966,-500.0,0.00039726,120]
[340023599,1728334294976,-500.0,0.00039726,120]
[340023600,1728334294986,-500.0,0.00039726,120]
[340023601,1728334294996,-503.02633093,0.00039726,120]
[340023602,1728334295007,-1000.0,0.00039726,120]
[340023603,1728334295019,-575.14,0.00039726,120]
[340023604,1728334295029,-500.0,0.00039726,120]
[340023605,1728334295039,-500.0,0.00039726,120]
[340023606,1728334295049,-500.0,0.00039726,120]
[340023607,1728334295059,-532.27195322,0.00039726,120]
[340023608,1728334295069,-500.0,0.00039726,120]
[340023609,1728334295079,-500.0,0.00039726,120]
[340023610,1728334295088,-501.94,0.00039726,120]
[340023611,1728334295098,-500.0,0.00039726,120]
[340023612,1728334295107,-557.73,0.00039726,120]
[340023613,1728334295120,-500.83173285,0.00039726,120]
[340023614,1728334295129,-819.33,0.00039726,120]
[340023615,1728334295139,-500.0,0.00039726,120]
[340023616,1728334295149,-521.05,0.00039726,120]
[340023617,1728334295158,-500.59996142,0.00039726,120]
[340023618,1728334295168,-1265.51,0.00039726,120]
[340023619,1728334295178,-518.1,0.00039726,120]
[340023620,1728334295187,-583.01,0.00039726,120]
[340023621,1728334295196,-500.0,0.00039726,120]
[340023622,1728334295206,-500.0,0.00039726,120]
[340023623,1728334295216,-500.0,0.00039726,120]
[340023624,1728334295225,-500.0,0.00039726,120]
[340023625,1728334295235,-617.64669938,0.00039726,120]
[340023626,1728334295244,-500.0,0.00039726,120]
[340023627,1728334295253,-1208.8,0.00039726,120]
[340023628,1728334295263,-500.0,0.00039726,120]
[340023629,1728334295272,-500.0,0.00039726,120]
[340023630,1728334295281,-500.0,0.00039726,120]
[340023631,1728334295292,-500.0,0.00039726,120]
[340023632,1728334295301,-500.0,0.00039726,120]
[340023633,1728334295310,-500.0,0.00039726,120]
[340023634,1728334295319,-618.94,0.00039726,120]
[340023635,1728334295329,-500.0,0.00039726,120]
[340023636,1728334295340,-500.0,0.00039726,120]
[340023637,1728334295352,-500.0,0.00039726,120]
[340023638,1728334295363,-500.0,0.00039726,120]
[340023639,1728334295374,-500.0,0.00039726,120]
[340023640,1728334295384,-500.0,0.00039726,120]
[340023641,1728334295393,-718.42,0.00039726,120]
[340023642,1728334295402,-500.0,0.00039726,120]
[340023643,1728334295411,-705.43,0.00039726,120]
[340023644,1728334295420,-500.0,0.00039726,120]
[340023645,1728334295430,-280.20373419,0.00039726,120]
[340023646,1728334295439,-500.0,0.00039726,120]
[340023647,1728334295448,-512.16,0.00039726,7]
[340023648,1728334295459,-500.0,0.00039726,120]
[340023649,1728334295468,-1000.59,0.00039726,120]
[340023650,1728334295591,-500.0,0.00039726,120]
[340023651,1728334295602,-2499.96,0.00039726,120]
[340023652,1728334295612,-500.0,0.00039726,120]
[340023653,1728334295622,-500.0,0.00039726,120]
[340023654,1728334295634,-500.0,0.00039726,120]
[340023655,1728334295644,-550.18,0.00039726,120]
[340023656,1728334295655,-500.0,0.00039726,120]
[340023657,1728334295666,-615.51,0.00039726,120]
[340023658,1728334295678,-500.0,0.00039726,120]
[340023659,1728334295690,-824.07,0.00039726,120]
[340023660,1728334295700,-500.0,0.00039726,120]
[340023661,1728334295714,-1097.32,0.00039726,120]
[340023662,1728334295724,-500.0,0.00039726,120]
[340023663,1728334295734,-500.0,0.00039726,120]
[340023664,1728334295744,-240.64624021,0.00039726,120]
[340023665,1728334295754,-516.16,0.00039726,120]
[340023666,1728334295764,-500.0,0.00039726,120]
[340023667,1728334295775,-500.0,0.00039726,120]
[340023668,1728334295785,-500.0,0.00039726,120]
[340023669,1728334295796,-514.48,0.00039726,120]
[340023670,1728334295809,-500.0,0.00039726,120]
[340023671,1728334295820,-500.0,0.00039726,120]
[340023672,1728334295830,-584.54,0.00039726,120]
[340023673,1728334295842,-500.0,0.00039726,120]
[340023674,1728334295852,-502.32,0.00039726,120]
[340023675,1728334295862,-500.0,0.00039726,120]
[340023676,1728334295871,-500.0,0.00039726,120]
[340023677,1728334295880,-500.0,0.00039726,120]
[340023678,1728334295890,-200.0,0.00039726,120]
[340023679,1728334295900,-500.0,0.00039726,120]
[340023680,1728334295910,-659.67,0.00039726,30]
[340023681,1728334295920,-843.64,0.00039726,120]
[340023682,1728334295932,-500.0,0.00039726,120]
[340023683,1728334295943,-826.06,0.00039726,120]
[340023684,1728334295955,-500.0,0.00039726,120]
[340023685,1728334295969,-844.53,0.00039726,120]
[340023686,1728334295979,-500.0,0.00039726,120]
[340023687,1728334295990,-500.0,0.00039726,120]
[340023688,1728334296002,-500.0,0.00039726,120]
[340023689,1728334296013,-451.98004586,0.00039726,120]
[340023690,1728334296025,-505.86133125,0.00039726,120]
[340023691,1728334296034,-500.0,0.00039726,120]
[340023692,1728334296044,-500.0,0.00039726,120]
[340023693,1728334296055,-500.0,0.00039726,120]
[340023694,1728334296066,-500.0,0.00039726,120]
[340023695,1728334296076,-863.29,0.00039726,120]
[340023696,1728334296085,-714.69,0.00039726,120]
[340023697,1728334296097,-500.0,0.00039726,120]
[340023698,1728334296108,-500.0,0.00039726,120]
[340023699,1728334296123,-500.0,0.00039726,120]
[340023700,1728334296134,-500.0,0.00039726,120]
[340023701,1728334296144,-500.0,0.00039726,120]
[340023702,1728334296155,-537.33,0.00039726,120]
[340023703,1728334296164,-500.0,0.00039726,120]
[340023704,1728334296173,-500.0,0.00039726,120]
[340023705,1728334296185,-611.81,0.00039726,120]
[340023706,1728334296197,-500.0,0.00039726,120]
[340023707,1728334296211,-500.0,0.00039726,120]
[340023708,1728334296221,-500.0,0.00039726,120]
[340023709,1728334296231,-500.0,0.00039726,120]
[340023710,1728334296242,-679.62,0.00039726,120]
[340023711,1728334296252,-500.0,0.00039726,120]
[340023712,1728334296264,-500.0,0.00039726,120]
[340023713,1728334296276,-500.0,0.00039726,120]
[340023714,1728334296285,-769.77,0.00039726,120]
[340023715,1728334296294,-500.0,0.00039726,120]
[340023716,1728334296304,-944.22,0.00039726,120]
[340023717,1728334296314,-500.0,0.00039726,120]
[340023718,1728334296323,-514.42,0.00039726,120]
[340023719,1728334296333,-500.0,0.00039726,120]
[340023720,1728334296343,-500.0,0.00039726,120]
[340023721,1728334296353,-501.73051504,0.00039726,120]
[340023722,1728334296363,-677.66,0.00039726,120]
[340023723,1728334296373,-500.0,0.00039726,120]
[340023724,1728334296384,-202.34106818,0.00039768,5]
[340023725,1728334296395,-152.0,0.00039871,14]
[340023726,1728334296404,-170.0,0.00039871,14]
[340023727,1728334296414,-2000.0,0.000399,120]
[340023728,1728334296424,-295.29951148,0.00039999,31]
[340023729,1728334296436,-367.7842936,0.00039999,31]
[340023730,1728334296448,-423.5179595,0.00039999,31]
[340023731,1728334296459,-489.4474298,0.00039999,31]
[340023732,1728334296470,-481.79780384,0.00039999,31]
[340023733,1728334296482,-597.6481958,0.00039999,31]
[340023734,1728334296493,-500.0,0.00039999,31]
[340023735,1728334296504,-413.91445126,0.00039999,31]
[340023736,1728334296514,-500.0,0.00039999,31]
[340023737,1728334296525,-500.0,0.00039999,31]
[340023738,1728334296536,-500.0,0.00039999,31]
[340023739,1728334296548,-500.0,0.00039999,31]
[340023740,1728334296558,-500.0,0.00039999,31]
[340023741,1728334296569,-500.0,0.00039999,31]
[340023742,1728334296578,-351.37424636,0.00039999,31]
[340023743,1728334296591,-2000.0,0.0004,40]
[340023744,1728334296603,-2000.0,0.0004,2]
[340023745,1728334296613,-4000.0,0.0004,20]
[340023746,1728334296623,-1110.59402729,0.0004,7]
[340023747,1728334296636,-6318.83105859,0.0004,2]
[340023748,1728334296647,-1557.94,0.0004,120]
[340023749,1728334296657,-499.2359484,0.0004,120]
[340023750,1728334296666,-150.0,0.0004,30]
[340023751,1728334296678,-1000.0,0.0004,120]
[340023752,1728334296688,-1056.0,0.0004,120]
[340023753,1728334296700,-331980.07804827,0.0004,30]
[340023754,1728334296710,-1483.5306522,0.0004,120]
[340023755,1728334296719,-1128.6918928,0.0004,30]
[340023756,1728334296728,-238.23595986,0.0004,120]
[340023757,1728334296738,-542.1313605,0.0004,120]
[340023758,1728334296747,-991.94024779,0.0004,120]
[340023759,1728334296758,-377.98705851,0.0004,120]
[340023760,1728334296769,-400.0,0.0004,120]
[340023761,1728334296779,-1000.0,0.0004,120]
[340023762,1728334296789,-755.53246091,0.0004,120]
[340023763,1728334296799,-272.2275094,0.0004,120]
[340023764,1728334296810,-30000.0,0.0004,120]
[340023765,1728334296821,-199.0,0.0004,120]
[340023766,1728334296833,-5000.0,0.0004,50]
[340023767,1728334296842,-6068.89361318,0.0004,120]
[340023768,1728334296853,-500.0,0.0004,120]
[340023769,1728334296864,-314.3888081,0.0004,120]
[340023770,1728334296873,-500.0,0.0004,120]
[340023771,1728334296884,-500.0,0.0004,120]
[340023772,1728334296895,-878.3,0.0004,120]
[340023773,1728334296905,-501.92367366,0.0004,120]
[340023774,1728334296915,-545.39,0.0004,120]
[340023775,1728334296925,-500.0,0.0004,120]
[340023776,1728334296935,-603.96,0.0004,120]
[340023777,1728334296946,-500.0,0.0004,120]
[340023778,1728334296958,-500.0,0.0004,120]
[340023779,1728334296968,-500.0,0.0004,120]
[340023780,1728334296978,-495.4525637,0.0004,120]
[340023781,1728334296988,-409.10435494,0.0004,120]
[340023782,1728334296997,-500.0,0.0004,120]
[340023783,1728334297008,-500.0,0.0004,120]
[340023784,1728334297018,-500.0,0.0004,90]
[340023785,1728334297027,-500.0,0.0004,120]
[340023786,1728334297037,-500.0,0.0004,120]
[340023787,1728334297046,-800.19,0.0004,120]
[340023788,1728334297056,-500.0,0.0004,120]
[340023789,1728334297066,-751.04,0.0004,120]
[340023790,1728334297076,-500.0,0.0004,7]
[340023791,1728334297086,-500.0,0.0004,120]
[340023792,1728334297096,-500.0,0.0004,120]
[340023793,1728334297106,-429.83143326,0.0004,120]
[340023794,1728334297120,-500.0,0.0004,120]
[340023795,1728334297132,-841.21,0.0004,120]
[340023796,1728334297143,-501.19328694,0.0004,120]
[340023797,1728334297152,-500.0,0.0004,120]
[340023798,1728334297163,-500.0,0.0004,20]
[340023799,1728334297172,-500.0,0.0004,120]
[340023800,1728334297183,-500.0,0.0004,120]
[340023801,1728334297192,-500.0,0.0004,120]
[340023802,1728334297203,-500.0,0.0004,120]
[340023803,1728334297219,-500.0,0.0004,120]
[340023804,1728334297229,-501.21651174,0.0004,30]
[340023805,1728334297238,-500.0,0.0004,120]
[340023806,1728334297249,-612.78,0.0004,120]
[340023807,1728334297258,-602.45207034,0.0004,120]
[340023808,1728334297268,-414.22367021,0.0004,120]
[340023809,1728334297277,-500.0,0.0004,120]
[340023810,1728334297286,-500.0,0.0004,120]
[340023811,1728334297295,-589.28,0.0004,120]
[340023812,1728334297305,-500.0,0.0004,120]
[340023813,1728334297314,-500.0,0.0004,120]
[340023814,1728334297326,-500.0,0.0004,120]
[340023815,1728334297337,-310.79490175,0.0004,120]
[340023816,1728334297347,-557.3,0.0004,120]
[340023817,1728334297358,-500.0,0.0004,120]
[340023818,1728334297370,-500.0,0.0004,120]
[340023819,1728334297381,-231.67687948,0.0004,120]
[340023820,1728334297391,-500.0,0.0004,120]
[340023821,1728334297401,-500.0,0.0004,120]
[340023822,1728334297412,-500.0,0.0004,120]
[340023823,1728334297423,-500.0,0.0004,120]
[340023824,1728334297434,-501.3791624,0.0004,120]
[340023825,1728334297444,-500.0,0.0004,120]
[340023826,1728334297455,-500.0,0.0004,120]
[340023827,1728334297466,-500.0,0.0004,120]
[340023828,1728334297476,-500.0,0.0004,120]
[340023829,1728334297485,-500.0,0.0004,120]
[340023830,1728334297495,-500.0,0.0004,120]
[340023831,1728334297505,-500.0,0.0004,120]
[340023832,1728334297514,-949.88,0.0004,120]
[340023833,1728334297524,-660.6,0.0004,120]
[340023834,1728334297533,-500.0,0.0004,120]
[340023835,1728334297543,-500.0,0.0004,120]
[340023836,1728334297553,-754.75,0.0004,120]
[340023837,1728334297564,-500.0,0.0004,120]
[340023838,1728334297573,-500.0,0.0004,120]
[340023839,1728334297584,-500.0,0.0004,120]
[340023840,1728334297593,-818.47,0.0004,120]
[340023841,1728334297604,-500.0,0.0004,120]
[340023842,1728334297614,-500.0,0.0004,120]
[340023843,1728334297736,-550.91,0.0004,120]
[340023844,1728334297747,-501.42282099,0.0004,120]
[340023845,1728334297759,-500.0,0.0004,120]
[340023846,1728334297771,-648.80418935,0.0004,120]
[340023847,1728334297781,-500.0,0.0004,120]
[340023848,1728334297794,-625.1,0.0004,120]
[340023849,1728334297804,-914.39,0.0004,120]
[340023850,1728334297814,-500.0,0.0004,120]
[340023851,1728334297824,-500.0,0.0004,120]
[340023852,1728334297838,-500.0,0.0004,120]
[340023853,1728334297848,-500.0,0.0004,120]
[340023854,1728334297860,-500.0,0.0004,120]
[340023855,1728334297870,-500.0,0.0004,120]
[340023856,1728334297881,-500.0,0.0004,120]
[340023857,1728334297893,-500.0,0.0004,120]
[340023858,1728334297904,-513.55895853,0.0004,120]
[340023859,1728334297915,-500.0,0.0004,120]
[340023860,1728334297924,-529.59478042,0.0004,120]
[340023861,1728334297935,-500.0,0.0004,120]
[340023862,1728334297945,-500.0,0.0004,120]
[340023863,1728334297954,-500.0,0.0004,120]
[340023864,1728334297965,-500.0,0.0004,120]
[340023865,1728334297974,-500.0,0.0004,120]
[340023866,1728334297984,-493.18880157,0.0004,60]
[340023867,1728334297994,-500.0,0.0004,120]
[340023868,1728334298005,-1047.98,0.0004,120]
[340023869,1728334298015,-500.0,0.0004,120]
[340023870,1728334298026,-500.0,0.0004,120]
[340023871,1728334298037,-683.38,0.0004,120]
[340023872,1728334298047,-500.0,0.0004,120]
[340023873,1728334298057,-500.0,0.0004,120]
[340023874,1728334298067,-500.0,0.0004,120]
[340023875,1728334298077,-1235.61,0.0004,120]
[340023876,1728334298087,-1137.42,0.0004,120]
[340023877,1728334298099,-500.0,0.0004,120]
[340023878,1728334298110,-177.1358648,0.0004,120]
[340023879,1728334298123,-500.0,0.0004,120]
[340023880,1728334298133,-500.0,0.0004,120]
[340023881,1728334298143,-500.0,0.0004,120]
[340023882,1728334298154,-501.02449014,0.0004,120]
[340023883,1728334298164,-500.0,0.0004,120]
[340023884,1728334298174,-500.0,0.0004,120]
[340023885,1728334298185,-500.0,0.0004,120]
[340023886,1728334298196,-500.0,0.0004,120]
[340023887,1728334298207,-575.41,0.0004,120]
[340023888,1728334298217,-500.0,0.0004,120]
[340023889,1728334298227,-500.0,0.0004,120]
[340023890,1728334298236,-500.0,0.0004,120]
[340023891,1728334298246,-500.0,0.0004,120]
[340023892,1728334298257,-500.0,0.0004,120]
[340023893,1728334298267,-800.54,0.0004,120]
[340023894,1728334298278,-500.0,0.0004,120]
[340023895,1728334298288,-709.12,0.0004,120]
[340023896,1728334298297,-711.22,0.0004,120]
[340023897,1728334298308,-500.0,0.0004,120]
[340023898,1728334298317,-550.77,0.0004,120]
[340023899,1728334298327,-500.0,0.0004,120]
[340023900,1728334298337,-500.0,0.0004,120]
[340023901,1728334298346,-744.73,0.0004,120]
[340023902,1728334298356,-500.0,0.0004,120]
[340023903,1728334298366,-500.0,0.0004,120]
[340023904,1728334298376,-750.18,0.0004,120]
[340023905,1728334298387,-500.0,0.0004,120]
[340023906,1728334298397,-500.0,0.0004,120]
[340023907,1728334298407,-607.18,0.0004,120]
[340023908,1728334298416,-1202.82,0.0004,120]
[340023909,1728334298426,-500.0,0.0004,120]
[340023910,1728334298438,-500.0,0.0004,120]
[340023911,1728334298447,-500.0,0.0004,120]
[340023912,1728334298457,-500.0,0.0004,120]
[340023913,1728334298467,-1170.58,0.0004,120]
[340023914,1728334298476,-500.0,0.0004,120]
[340023915,1728334298485,-500.0,0.0004,120]
[340023916,1728334298496,-500.0,0.0004,120]
[340023917,1728334298507,-637.28,0.0004,120]
[340023918,1728334298517,-500.0,0.0004,120]
[340023919,1728334298527,-487.5884114,0.0004,120]
[340023920,1728334298537,-500.0,0.0004,120]
[340023921,1728334298549,-1008.72,0.0004,120]
[340023922,1728334298561,-558.5193406,0.0004,120]
[340023923,1728334298571,-500.0,0.0004,120]
[340023924,1728334298582,-576.24,0.0004,120]
[340023925,1728334298592,-787.72,0.0004,120]
[340023926,1728334298603,-500.0,0.0004,120]
[340023927,1728334298613,-687.3,0.0004,120]
[340023928,1728334298624,-500.0,0.0004,120]